fUSD/lending_fUSD_20241102
["ID","MTS","AMOUNT","RATE_DAILY","PERIOD"]
[341174317,1730530238235,-1040.7,0.00028518,2]
[341174318,1730530238247,-306.17957921,0.00028543,2]
[341174319,1730530238257,-1298.24,0.00028615,2]
[341174320,1730530238268,-534.85,0.00028643,2]
[341174321,1730530238277,-62500.0,0.00028922,2]
[341174322,1730530238287,-170.04,0.00028958,2]
[341174323,1730530238300,-23870.0,0.00028977,2]
[341174325,1730530238313,-180.34,0.00029114,2]
[341174326,1730530238323,-3832.49,0.00029354,2]
[341174328,1730530238333,-62500.0,0.00029365,2]
[341174331,1730530238345,-8305.12,0.0002937,2]
[341174333,1730530238355,-1000.0,0.00029455,2]
[341174334,1730530238365,-167.8,0.00029728,2]
[341174335,1730530238374,-1243.44,0.00029771,2]
[341174336,1730530238383,-217.85227088,0.00029798,2]
[341174337,1730530238393,-151.0,0.00029808,7]
[341174338,1730530238402,-151.0,0.00029808,7]
[341174339,1730530238411,-62500.0,0.00029808,2]
[341174341,1730530238421,-1212.87817283,0.00029825,15]
[341174342,1730530238432,-708.51,0.00029845,2]
[341174343,1730530238443,-158.0385,0.0003,2]
[341174344,1730530238453,-190.01475,0.0003,2]
[341174345,1730530238463,-190.01475,0.0003,2]
[341174346,1730530238473,-62500.0,0.00030252,2]
[341174347,1730530238483,-180.34,0.00030647,2]
[341174348,1730530238494,-62500.0,0.00030695,2]
[341174349,1730530238506,-151.0,0.00030695,7]
[341174350,1730530238515,-151.0,0.00030695,7]
[341174351,1730530238524,-1298.24,0.00030879,2]
[341174352,1730530238536,-153.9,0.00031001,2]
[341174353,1730530238547,-153.9,0.00031053,2]
[341174354,1730530238557,-219.35,0.00031077,2]
[341174355,1730530238567,-153.9,0.00031104,2]
[341174356,1730530238578,-153.9,0.00031156,2]
[341174357,1730530238589,-153.9,0.00031208,2]
[341174358,1730530238599,-153.9,0.00031259,2]
[341174359,1730530238610,-153.9,0.00031311,2]
[341174360,1730530238620,-708.51,0.00031337,2]
[341174361,1730530238630,-180.34,0.00032179,2]
[341174362,1730530238640,-1212.87817283,0.000323,15]
[341174363,1730530238649,-1000.0,0.00032727,2]
[341174364,1730530238659,-708.51,0.00032829,2]
[341174365,1730530238667,-1298.24,0.00033143,2]
[341174366,1730530238678,-180.34,0.00033711,2]
[341174367,1730530238688,-154.22,0.00033995,2]
[341174368,1730530238698,-708.51,0.00034322,2]
[341174369,1730530238709,-167.8,0.00034634,2]
[341174370,1730530238720,-1212.87817283,0.00034775,15]
[341174371,1730530238731,-1298.24,0.00035407,2]
[341174372,1730530238741,-708.51,0.00035814,2]
[341174373,1730530238751,-151.0,0.00035848,7]
[341174374,1730530238762,-151.0,0.00035848,7]
[341174375,1730530238771,-1000.0,0.00036,2]
[341174376,1730530238781,-274.88882804,0.00036,2]
[341174377,1730530238792,-151.0,0.00036,7]
[341174378,1730530238801,-170.04,0.00036198,2]
[341174379,1730530238918,-306.17957919,0.00036609,2]
[341174380,1730530238931,-349.745,0.00036712,46]
[341174381,1730530238941,-151.0,0.0003725,7]
[341174382,1730530238955,-1212.87817283,0.0003725,15]
[341174383,1730530238964,-159.63227,0.00037304,7]
[341174384,1730530238974,-155.84,0.00037344,2]
[341174385,1730530238985,-1298.24,0.00037671,2]
[341174386,1730530238997,-219.35,0.00037672,2]
[341174387,1730530239006,-190.01475,0.00039257,2]
[341174388,1730530239015,-1000.0,0.00039273,2]
[341174389,1730530239026,-1334.9,0.00039479,2]
[341174390,1730530239036,-157.71,0.00039671,2]
[341174391,1730530239046,-157.39,0.00039671,2]
[341174392,1730530239056,-1212.87817283,0.00039725,15]
[341174393,1730530239066,-1298.24,0.00039934,2]
[341174394,1730530239077,-153.5,0.0004,120]
[341174395,1730530239088,-186.0,0.0004,30]
[341174396,1730530239099,-154.0,0.0004,10]
[341174397,1730530239109,-604.04201781,0.00040075,5]
[341174398,1730530239119,-6067.92166009,0.0004077,30]
[341174399,1730530239129,-6164.0,0.0004097,2]
[341174400,1730530239144,-151.83,0.00041096,2]
[341174401,1730530239153,-157.0,0.00041096,2]
[341174402,1730530239163,-351.64642171,0.000411,2]
[341174403,1730530239172,-457.843,0.00041802,2]
[341174404,1730530239181,-1250.0,0.00041802,2]
[341174405,1730530239191,-1985.0,0.00041802,2]
[341174406,1730530239200,-558.0,0.00041802,2]
[341174407,1730530239209,-150.0,0.00041802,2]
[341174408,1730530239218,-3372.0,0.00041802,2]
[341174409,1730530239227,-1792.0,0.00041802,2]
[341174410,1730530239236,-2904.0,0.00041802,2]
[341174411,1730530239246,-1255.0,0.00041802,2]
[341174412,1730530239255,-812.0,0.00041802,2]
[341174413,1730530239264,-812.0,0.00041802,2]
[341174414,1730530239273,-220.0,0.00041802,2]
[341174415,1730530239282,-274.306,0.00041802,2]
[341174416,1730530239294,-13738.095,0.00041802,2]
[341174417,1730530239304,-5911.0,0.00041802,2]
[341174418,1730530239314,-165.0,0.00041802,2]
[341174419,1730530239324,-282.09,0.00041802,2]
[341174420,1730530239335,-200.0,0.00041802,2]
[341174421,1730530239345,-150.0,0.00041802,2]
[341174422,1730530239354,-240.008,0.00041802,2]
[341174423,1730530239363,-152.56,0.00041802,2]
[341174424,1730530239373,-1155.0,0.00041802,2]
[341174425,1730530239382,-150.0,0.00041802,2]
[341174426,1730530239392,-8363.56070859,0.0004188,2]
[341174427,1730530239401,-1298.24,0.00042198,2]
[341174428,1730530239411,-1212.87817283,0.000422,15]
[341174429,1730530239420,-304.0,0.00042676,7]
[341174430,1730530239429,-151.83,0.00042676,2]
[341174431,1730530239440,-588.87,0.00043278,2]
[341174433,1730530239451,-226.23,0.00043288,2]
[341174434,1730530239461,-150.0,0.00043288,2]
[341174435,1730530239470,-150.0,0.00043288,2]
[341174436,1730530239479,-150.0,0.00043288,2]
[341174437,1730530239489,-588.87,0.00043301,2]
[341174438,1730530239498,-588.87,0.00043323,2]
[341174439,1730530239507,-588.87,0.00043346,2]
[341174440,1730530239516,-588.87,0.00043369,2]
[341174441,1730530239526,-588.87,0.00043392,2]
[341174442,1730530239535,-588.87,0.00043415,2]
[341174443,1730530239545,-588.87,0.00043437,2]
[341174444,1730530239554,-170.04,0.00043437,2]
[341174445,1730530239563,-588.87,0.0004346,2]
[341174446,1730530239573,-588.87,0.00043483,2]
[341174447,1730530239582,-588.87,0.00043506,2]
[341174448,1730530239592,-588.87,0.00043528,2]
[341174449,1730530239601,-588.87,0.00043551,2]
[341174450,1730530239611,-588.87,0.00043574,2]
[341174451,1730530239621,-588.87,0.00043597,2]
[341174452,1730530239631,-39021.92216234,0.000436,2]
[341174453,1730530239641,-151.0,0.000436,14]
[341174454,1730530239651,-588.87,0.00043619,2]
[341174455,1730530239661,-171.197,0.0004362,30]
[341174456,1730530239672,-588.87,0.00043642,2]
[341174457,1730530239681,-588.87,0.00043665,2]
[341174458,1730530239691,-588.87,0.00043688,2]
[341174459,1730530239700,-588.87,0.00043711,2]
[341174460,1730530239710,-207.94009613,0.00043775,16]
[341174461,1730530239721,-207.94009613,0.00043775,16]
[341174462,1730530239730,-525.43446641,0.00043835,9]
[341174463,1730530239740,-966.0,0.00043836,30]
[341174464,1730530239750,-2889.63883065,0.000439,2]
[341174465,1730530239762,-221.81848753,0.000439,18]
[341174466,1730530239772,-10000.0,0.000439,3]
[341174467,1730530239782,-151.0,0.000439,7]
[341174468,1730530239792,-500.0,0.00043999,2]
[341174469,1730530239802,-1186.41,0.00043999,120]
[341174470,1730530239811,-500.0,0.00044,120]
[341174471,1730530239821,-1037.0,0.00044,12]
[341174472,1730530239832,-6175.8536627,0.00044,2]
[341174473,1730530239841,-57655.7751005,0.00044,2]
[341174474,1730530239856,-316.62500066,0.00044,2]
[341174475,1730530240052,-0.97792264,0.00044,2]
[341174477,1730530242771,-1019.92409386,0.00041802,2]
[341174478,1730530242945,-68.07590614,0.00041802,2]
[341174479,1730530242960,-5730.51732482,0.00044,2]
[341174482,1730530243129,-2224.90070423,0.00044,2]
[341174483,1730530243178,-1.19867802,0.00044,2]
[341174488,1730530245678,-364.2,0.00044,2]
[341174489,1730530245690,-275.43,0.00044,2]
[341174490,1730530245910,-3204.03793356,0.00044,2]
[341174492,1730530385943,150.0,0.00015342,2]
[341174493,1730530385966,8.11,0.00015342,2]
[341174494,1730530942652,150.0,0.00015342,2]
[341174495,1730530942676,7.7,0.00015342,2]
[341174496,1730530980232,403.8,0.000195,3]
[341174497,1730530994580,-150.0,0.00018107,2]
[341174498,1730531021899,150.0,0.00019178,2]
[341174499,1730531021923,33.96,0.00019178,2]
[341174500,1730531034207,150.0,0.00018114,2]
[341174501,1730531041875,150.0,0.00019725,2]
[341174502,1730531041898,150.0,0.00019725,2]
[341174503,1730531075729,150.0,0.00018118,2]
[341174504,1730531084429,-1140.04,0.00021177,2]
[341174507,1730531199374,250.0,0.00017,2]
[341174552,1730531431887,-697.81,0.00018016,2]
[341174553,1730531431898,-1465.64926906,0.00018016,2]
[341174554,1730531431999,-921.85474894,0.00018016,2]
[341174555,1730531432008,-151.28882876,0.00018107,2]
[341174556,1730531432019,-300.0,0.00018799,2]
[341174557,1730531432029,-2569.84111501,0.000188,2]
[341174558,1730531432040,-7506.45117814,0.000188,2]
[341174559,1730531432049,-164.17133252,0.000189,2]
[341174560,1730531432059,-300.46780003,0.000189,2]
[341174561,1730531432068,-4690.33428051,0.000189,2]
[341174562,1730531432142,-2473.9652008,0.000189,2]
[341174563,1730531432152,-300.0,0.00019,2]
[341174564,1730531432161,-300.46780002,0.000199,2]
[341174565,1730531432171,-1077.4,0.000199,2]
[341174566,1730531432181,-420.0,0.00020495,2]
[341174567,1730531432190,-300.46780002,0.000209,2]
[341174568,1730531432200,-4378.975,0.00020977,2]
[341174569,1730531432210,-350.0,0.00021,2]
[341174570,1730531432220,-150.99,0.00021284,2]
[341174571,1730531432230,-587.0,0.00022344,2]
[341174572,1730531432240,-400.0,0.00023,2]
[341174574,1730531432251,-673.0,0.0002436,2]
[341174575,1730531432260,-450.0,0.00025,2]
[341174577,1730531432269,-500.0,0.00027,2]
[341174579,1730531432280,-157.7,0.00027507,2]
[341174581,1730531432290,-550.0,0.00029,2]
[341174584,1730531432300,-152.00825,0.0003,2]
[341174586,1730531432311,-152.00825,0.0003,2]
[341174588,1730531432322,-506.86275,0.0003,2]
[341174590,1730531432332,-65.9729498,0.0003,2]
[341174592,1730531432344,-334.79012144,0.0003,2]
[341174606,1730531438153,-106.09967876,0.0003,2]
[341174607,1730531438163,-248.90032124,0.00031,2]
[341174608,1730531438182,-351.09967876,0.00031,2]
[341174609,1730531438191,-650.0,0.00033,2]
[341174610,1730531438201,-863.92,0.00033872,2]
[341174611,1730531438211,-700.0,0.00035,2]
[341174612,1730531438222,-4821.62,0.00035407,2]
[341174613,1730531438232,-193.00140621,0.00035976,2]
[341174617,1730531440117,-787.61094789,0.00035976,2]
[341174618,1730531440128,-1938.28879912,0.00035976,2]
[341174619,1730531440140,-1902.71884678,0.00035976,2]
[341174620,1730531440149,-204.64,0.0003598,2]
[341174621,1730531440159,-863.92,0.00036136,2]
[341174622,1730531440168,-1000.0,0.00036261,2]
[341174623,1730531440177,-2330.72105772,0.00036545,2]
[341174631,1730531442970,-2490.89894228,0.00036545,2]
[341174632,1730531442980,-4821.62,0.00037114,2]
[341174633,1730531442989,-4171.09,0.00037168,2]
[341174634,1730531442999,-635.39,0.00037307,2]
[341174635,1730531443009,-4821.62,0.00037683,2]
[341174636,1730531443019,-200.0,0.00037885,2]
[341174637,1730531443029,-500.0,0.00038228,2]
[341174638,1730531443041,-4821.62,0.00038252,2]
[341174639,1730531443050,-168.14,0.00038307,2]
[341174640,1730531443061,-5862.82105772,0.00038377,2]
[341174641,1730531443125,-573.633557,0.00038377,2]
[341174642,1730531443138,-4196.70112821,0.00038377,2]
[341174643,1730531445869,-7405.91550632,0.00038377,2]
[341174644,1730531457522,155.6,0.00015342,2]
[341174646,1730531558992,150.0,0.000195,3]
[341174647,1730531973047,150.0,0.00015342,2]
[341174648,1730531973068,5.99,0.00015342,2]
[341174649,1730532191723,-150.0,0.00018107,2]
[341174650,1730532191745,-200.27,0.00019178,2]
[341174651,1730532228426,-416.0,0.000223,2]
[341174652,1730532240734,-595.25758373,0.000299,2]
[341174653,1730532240758,-445.15625,0.0003,2]
[341174654,1730532240781,-445.15625,0.0003,2]
[341174655,1730532240803,-334.508,0.0003,2]
[341174656,1730532240828,-334.508,0.0003,2]
[341174657,1730532241294,300.0,0.00019725,2]
[341174658,1730532308178,43891.14391627,0.00016,2]
[341174659,1730532308205,4325.0,0.00016,2]
[341174660,1730532308230,10641.96,0.00016,2]
[341174661,1730532308259,39845.63,0.00016,2]
[341174662,1730532308284,100000.0,0.00016,2]
[341174663,1730532308310,2965000.0,0.00016,2]
[341174664,1730532308336,1625602.51109793,0.00016,2]
[341174666,1730532319956,150.0,9e-05,2]
[341174667,1730532319977,150.0,9e-05,2]
[341174668,1730532320001,150.0,9e-05,2]
[341174669,1730532320021,4551.9495307,9e-05,2]
[341174670,1730532356292,4187.45955554,0.000159,2]
[341174683,1730532483320,49446.2,0.000145,3]
[341174684,1730532483345,50000.0,0.000145,3]
[341174685,1730532483371,50000.0,0.000145,3]
[341174686,1730532483402,2000.0,0.000145,3]
[341174687,1730532483424,150.0,0.000145,3]
[341174688,1730532483449,50000.0,0.000145,3]
[341174689,1730532483475,43969.87291939,0.000145,3]
[341174690,1730532485221,42930.12708061,0.00015,2]
[341174691,1730532485242,1622.03733876,0.00015,2]
[341174692,1730532485262,1472.03733876,0.00015,2]
[341174693,1730532485286,95812.54044446,0.00015,2]
[341174694,1730532485309,100000.0,0.00015,2]
[341174695,1730532485332,100000.0,0.00015,2]
[341174696,1730532485352,1819755.1899201,0.00015,2]
[341174697,1730532492243,150.0,0.00013,4]
[341174698,1730532492264,150.0,0.00013,4]
[341174699,1730532492288,7340.17994629,0.00013,4]
[341174700,1730532493922,201.53954703,0.00015,2]
[341174701,1730532500150,2018.21105446,0.0001439,2]
[341174704,1730532524386,950.36529984,0.0001,2]
[341174705,1730532525445,2430.0,0.000145,2]
[341174706,1730532526021,495.31017514,0.00015,2]
[341174708,1730532542905,500.0,0.00014973,2]
[341174721,1730532580018,159.34,0.00015342,2]
[341174722,1730532590539,-200.0,0.0001634,2]
[341174732,1730532632021,-150.0,0.00018123,2]
[341174734,1730532632035,-174.22425,0.00018238,2]
[341174735,1730532632043,-564.242106,0.00019082,2]
[341174737,1730532632055,-150.0,0.00019178,2]
[341174739,1730532632064,-300.0,0.00019725,2]
[341174741,1730532632074,-4812.76419657,0.0002,2]
[341174742,1730532632085,-2399.99999998,0.0002,2]
[341174743,1730532632164,-899.999998,0.0002,2]
[341174744,1730532632176,-1215.38881356,0.0002,2]
[341174745,1730532632187,-3489.35,0.0002,2]
[341174751,1730532638164,-598.5770164,0.0002,2]
[341174752,1730532638298,-24567.4637312,0.0002,2]
[341174753,1730532638308,-150.0,0.00021484,2]
[341174754,1730532638317,-159.34,0.00028858,2]
[341174755,1730532638326,-177.06,0.00030994,2]
[341174756,1730532638336,-398.33725854,0.00035,2]
[341174757,1730532638345,-279.98,0.00035548,2]
[341174758,1730532638354,-150.0,0.00035557,2]
[341174759,1730532638363,-15770.62405615,0.00035558,2]
[341174760,1730532638372,-153.0,0.00035616,2]
[341174761,1730532638382,-153.0,0.00035616,2]
[341174762,1730532638391,-1140.63,0.00036799,2]
[341174763,1730532638400,-160.57,0.00036924,2]
[341174764,1730532638409,-5365.17,0.00036924,2]
[341174765,1730532638418,-200.0,0.00037695,2]
[341174766,1730532638428,-279.98,0.00037748,2]
[341174767,1730532638438,-500.0,0.00037757,15]
[341174768,1730532638448,-500.0,0.00037757,15]
[341174769,1730532638459,-466.24476878,0.00037757,15]
[341174770,1730532638470,-500.0,0.00037757,15]
[341174771,1730532638479,-500.0,0.00037757,15]
[341174772,1730532638489,-500.0,0.00037757,15]
[341174773,1730532638498,-500.0,0.00037757,15]
[341174774,1730532638508,-500.0,0.00037757,15]
[341174776,1730532638517,-500.0,0.00037757,15]
[341174778,1730532638526,-196.91465412,0.00037757,15]
[341174780,1730532638535,-8563.14,0.00037759,2]
[341174782,1730532638544,-682.32,0.00037778,2]
[341174784,1730532638553,-150.0,0.000378,2]
[341174786,1730532638563,-279.98,0.0003799,2]
[341174788,1730532638572,-279.98,0.0003799,2]
[341174789,1730532638581,-1012.44970118,0.00037999,2]
[341174790,1730532638590,-22688.30261048,0.00038,2]
[341174791,1730532638599,-279.796,0.00038127,50]
[341174792,1730532638608,-165.06,0.00038188,2]
[341174793,1730532638617,-424.6858336,0.0003824,2]
[341174794,1730532638626,-8563.14,0.00038366,2]
[341174795,1730532638635,-500.0,0.00038608,2]
[341174796,1730532638644,-241.48,0.00038626,2]
[341174797,1730532638653,-500.0,0.00038634,3]
[341174798,1730532638662,-250.0,0.00038637,120]
[341174799,1730532638671,-279.98,0.00038647,2]
[341174800,1730532638680,-8019.47,0.00038657,2]
[341174801,1730532638689,-1000.0,0.00038688,2]
[341174802,1730532638698,-96.84010949,0.00038688,2]
[341174803,1730532638710,-3098.11989051,0.00038688,2]
[341174804,1730532638719,-164.74,0.00038811,2]
[341174805,1730532638729,-504.12,0.00038835,2]
[341174806,1730532638738,-486.31,0.00038844,3]
[341174807,1730532638749,-279.98,0.00038844,2]
[341174808,1730532638761,-8144.53677162,0.00038854,2]
[341174811,1730532640099,-434.54746564,0.00038854,2]
[341174812,1730532640110,-402.598118,0.00038854,2]
[341174813,1730532640122,-883.25918109,0.00038854,2]
[341174814,1730532640134,-643.65507974,0.00038854,2]
[341174815,1730532640159,-13391.40338391,0.00038854,2]
[341174816,1730532640169,-279.98,0.00038962,2]
[341174817,1730532640178,-8563.14,0.00038972,2]
[341174818,1730532640188,-1140.63,0.00039063,2]
[341174819,1730532640199,-452.97,0.0003908,2]
[341174820,1730532640209,-152.00825,0.00039257,2]
[341174821,1730532640220,-445.15625,0.00039442,2]
[341174822,1730532640229,-334.508,0.00039459,2]
[341174823,1730532640239,-506.86275,0.00039566,2]
[341174824,1730532640248,-279.98,0.00039569,2]
[341174825,1730532640258,-8563.14,0.00039579,2]
[341174826,1730532640267,-158.11,0.00039671,2]
[341174827,1730532640276,-157.7,0.00039671,2]
[341174828,1730532640285,-155.99,0.00039671,2]
[341174829,1730532640296,-167.0,0.00039805,2]
[341174830,1730532640305,-162.1,0.0003999,3]
[341174831,1730532640315,-279.98,0.0003999,30]
[341174832,1730532640324,-513.0,0.0004,120]
[341174833,1730532640334,-14116.82751501,0.0004,4]
[341174834,1730532640343,-8563.14,0.00040186,2]
[341174835,1730532640354,-166.74,0.00040248,2]
[341174836,1730532640365,-279.98,0.00040783,30]
[341174837,1730532640376,-8563.14,0.00040793,2]
[341174838,1730532640388,-239.28571011,0.000408,30]
[341174839,1730532640404,-388.35825778,0.000408,30]
[341174840,1730532640415,-1000.0,0.00040999,3]
[341174841,1730532640427,-452.97,0.00041034,2]
[341174842,1730532640438,-151.69,0.00041096,2]
[341174843,1730532640448,-1140.63,0.00041327,2]
[341174844,1730532640458,-324.2,0.0004136,3]
[341174845,1730532640469,-1731.43377946,0.00041399,2]
[341174846,1730532640482,-1637.55369864,0.00041399,2]
[341174847,1730532640496,-5194.1525219,0.00041399,2]
[341174848,1730532640510,-430.18681138,0.0004155,120]
[341174849,1730532640521,-8124.71661897,0.0004188,2]
[341174850,1730532640532,-217.85227088,0.0004199,2]
[341174851,1730532640547,-384855.0,0.00042,2]
[341174852,1730532640560,-76911.69223184,0.00042,30]
[341174854,1730532640571,-8563.14,0.00042006,2]
[341174855,1730532640581,-159.34,0.00042374,2]
[341174857,1730532640592,-166.74,0.00042463,2]
[341174859,1730532640603,-788.81,0.0004274,2]
[341174861,1730532640613,-160.57,0.00042755,120]
[341174862,1730532640625,-250.0,0.00042789,2]
[341174863,1730532640635,-151.69,0.00042808,2]
[341174864,1730532640646,-452.97,0.00042988,2]
[341174865,1730532640658,-5471.35068429,0.00043,4]
[341174866,1730532640670,-79999.999999,0.00043,30]
[341174867,1730532640682,-151.0,0.00043,7]
[341174868,1730532640694,-351.36668338,0.00043,2]
[341174869,1730532640705,-151.0,0.00043,14]
[341174870,1730532640717,-691.57630475,0.000432,14]
[341174871,1730532640729,-1000.0,0.00043524,2]
[341174872,1730532640740,-1140.63,0.00043591,2]
[341174873,1730532640752,-207.94009613,0.00043773,16]
[341174874,1730532640764,-160.0,0.00043835,9]
[341174875,1730532640774,-151.6097716,0.00043847,15]
[341174876,1730532640785,-1985.0,0.00043873,2]
[341174877,1730532640796,-558.0,0.00043873,2]
[341174878,1730532640807,-3372.0,0.00043873,2]
[341174879,1730532640819,-1792.0,0.00043873,2]
[341174880,1730532640831,-812.0,0.00043873,2]
[341174881,1730532640842,-1255.0,0.00043873,2]
[341174882,1730532640853,-2904.0,0.00043873,2]
[341174883,1730532640865,-808.0,0.00043873,2]
[341174884,1730532640877,-1155.0,0.00043873,2]
[341174885,1730532640890,-297.44,0.00043873,2]
[341174886,1730532640900,-152.56,0.00043873,2]
[341174887,1730532640911,-13590.0,0.00043873,2]
[341174888,1730532640924,-5911.0,0.00043873,2]
[341174889,1730532640934,-451.0,0.00043873,2]
[341174890,1730532640945,-1250.0,0.00043873,2]
[341174891,1730532640956,-363.97548304,0.00043899,9]
[341174892,1730532640967,-500.0,0.00043899,2]
[341174893,1730532640978,-249.03026391,0.00043999,2]
[341174894,1730532640988,-1136.97,0.00043999,120]
[341174895,1730532640999,-259.0,0.00044,7]
[341174896,1730532641012,-5250.2166849,0.00044,7]
[341174897,1730532641023,-13767.69019203,0.00044,2]
[341174898,1730532641040,-143900.2474838,0.00044,2]
[341174899,1730532641054,-425.26692339,0.00044,2]
[341174900,1730532641066,-1187.97820297,0.00044,2]
[341174901,1730532641082,-549.97750151,0.00044,2]
[341174902,1730532641094,-1006.632,0.00044,2]
[341174906,1730532642992,-1088.0,0.00043873,2]
[341174907,1730532643004,-268.30670095,0.00044,2]
[341174908,1730532643021,-1743.53728373,0.00044,2]
[341174910,1730532643125,-812.31370672,0.00044,2]
[341174911,1730532643139,-4223.88782054,0.00044,2]
[341174912,1730532643331,-4859.22515269,0.00044,2]
[341174913,1730532643343,-1803.24107835,0.00044,2]
[341174914,1730532643355,-342.3,0.00044,2]
[341174915,1730532643368,-430.68224994,0.00044,2]
[341174916,1730532643384,-20575.36674778,0.00044,2]
[341174917,1730532643396,-686.07052464,0.00044,2]
[341174918,1730532643408,-276.2604502,0.00044,2]
[341174922,1730532646216,-622.87,0.00043835,9]
[341174923,1730532646231,-622.87,0.00043835,9]
[341174924,1730532646242,-622.87,0.00043999,9]
[341174925,1730532646253,-5537.30550632,0.00044,2]
[341174938,1730532646522,-311481.77080371,0.00044,2]
[341174941,1730532646534,-2246.17018515,0.00044,2]
[341174942,1730532646543,-500.0,0.00044,120]
[341174944,1730532646553,-400.0,0.00044,120]
[341174946,1730532646562,-151.0,0.00044,14]
[341174948,1730532646571,-150.0,0.00044002,2]
[341174950,1730532646581,-656.03,0.00044087,7]
[341174952,1730532646590,-2046.0,0.000442,120]
[341174954,1730532646600,-270.4,0.000442,30]
[341174956,1730532646609,-151.6097716,0.0004426,15]
[341174958,1730532646619,-2115.79004325,0.000443,2]
[341174960,1730532646634,-4952.48764898,0.000443,2]
[341174966,1730532646678,-254.86173603,0.000443,2]
[341174968,1730532646690,-2543.48965483,0.000443,2]
[341174970,1730532646702,-714.2364726,0.000443,2]
[341174972,1730532646713,-468.68885309,0.000443,2]
[341174975,1730532646724,-569.64,0.000443,2]
[341174977,1730532646735,-1517.8319108,0.000443,2]
[341174979,1730532646746,-1144.6138646,0.000443,2]
[341174981,1730532646757,-2340.79435941,0.000443,2]
[341174984,1730532646775,-2564.02335288,0.000443,2]
[341174986,1730532646790,-325.95661418,0.00043999,9]
[341175073,1730533011566,250.0,0.00017,2]
[341175074,1730533123872,157.51,0.00015342,2]
[341175075,1730533202650,282.21991292,0.00015342,2]
[341175077,1730533697312,150.0,0.00015342,2]
[341175078,1730533697336,7.7,0.00015342,2]
[341175105,1730533832265,-150.0,0.00018107,2]
[341175106,1730533832275,-300.0,0.00019,2]
[341175107,1730533832284,-940.0,0.00022,2]
[341175108,1730533832293,-190.015,0.0003,2]
[341175109,1730533832303,-157.7,0.0003272,2]
[341175110,1730533832312,-150.0,0.00034548,10]
[341175111,1730533832321,-157.51,0.00035616,2]
[341175112,1730533832331,-912.5,0.00040619,2]
[341175113,1730533832340,-151.69,0.00042413,2]
[341175114,1730533832349,-164.74,0.00042667,2]
[341175115,1730533832359,-165.06,0.00042704,2]
[341175116,1730533832368,-1000.0,0.00042824,2]
[341175117,1730533832378,-912.5,0.00042883,2]
[341175118,1730533832387,-17557.44,0.00042934,2]
[341175119,1730533832397,-223.837,0.00043,66]
[341175120,1730533832408,-176.0,0.00043,90]
[341175121,1730533832417,-181.18,0.00043498,2]
[341175122,1730533832426,-300.0,0.00043833,4]
[341175123,1730533832436,-451.0,0.00043834,2]
[341175124,1730533832445,-1250.0,0.00043834,2]
[341175125,1730533832454,-807.57077778,0.00043834,2]
[341175126,1730533832471,-1168.42922222,0.00043834,2]
[341175127,1730533832482,-558.0,0.00043834,2]
[341175128,1730533832492,-1088.0,0.00043834,2]
[341175129,1730533832501,-3355.0,0.00043834,2]